[Event "SWE-ch 2018"]
[Site "Ronneby"]
[Date "2018.06.30"]
[Round "1"]
[White "Westerberg, Jonathan"]
[Black "Von Bahr, Oskar"]
[Result "1/2-1/2"]
[ECO "D78"]
[WhiteElo "2517"]
[BlackElo "2432"]
[Annotator "ChessBase"]
[PlyCount "81"]
[EventDate "2018.06.30"]
[EventType "tourn"]
[EventCountry "SWE"]
[SourceTitle "playchess.com"]
[Source "ChessBase"]
[SourceQuality "1"]
[TimeControl "40/5400+30:1800+30"]

1. d4 {[%emt 0:00:00]} Nf6 {[%emt 0:00:00]} 2. Nf3 {[%emt 0:00:00]} g6 {[%emt 0:00:07]} 3. g3 {[%emt 0:00:19]} Bg7 {[%emt 0:00:40]} 4. Bg2 {[%emt 0:00:09]} d5 {[%emt 0:01:29]} 5. O-O {[%emt 0:00:37]} O-O {[%emt 0:00:52]} 6. c4 {[%emt 0:00:08]} c6 {[%emt 0:00:08]} 7. Ne5 {[%emt 0:00:32]} c5 {[%emt 0:02:47]} 8. e3 {[%emt 0:14:45]} cxd4 {[%emt 0:04:20]} 9. exd4 {[%emt 0:00:28]} Nc6 {[%emt 0:02:03]} 10. Nc3 {[%emt 0:11:03]} dxc4 {[%emt 0:04:24]} 11. Nxc6 {[%emt 0:02:52]} bxc6 {[%emt 0:00:05]} 12. Qa4 {[%emt 0:04:09]} Be6 {[%emt 0:09:07]} 13. Bxc6 {[%emt 0:02:34]} Rc8 {[%emt 0:02:42]} 14. Bg2 {[%emt 0:04:05]} Nd5 {[%emt 0:05:43]} 15. Qxa7 {[%emt 0:08:16]} Ra8 {[%emt 0:06:44]} 16. Qb7 {[%emt 0:07:41]} Rb8 {[%emt 0:02:44]} 17. Qc6 {[%emt 0:03:27]} Nb4 {[%emt 0:02:52]} 18. Qa4 {[%emt 0:00:19]} Nd3 {[%emt 0:04:44]} 19. d5 {[%emt 0:00:48]} Bd7 {[%emt 0:07:00]} 20. Qxc4 {[%emt 0:13:16]} Nxb2 {[%emt 0:00:36]} 21. Bxb2 {[%emt 0:00:38]} Rxb2 {[%emt 0:00:04]} 22. Rab1 {[%emt 0:03:13]} Rc2 {[%emt 0:11:15]} 23. Rfc1 {[%emt 0:01:59]} Rxc1+ {[%emt 0:00:51]} 24. Rxc1 {[%emt 0:00:01]} Qa5 {[%emt 0:00:46]} 25. Ne4 {[%emt 0:03:22]} Rc8 {[%emt 0:06:47]} 26. Qf1 {[%emt 0:02:28]} Qxa2 {[%emt 0:01:55]} 27. Rxc8+ {[%emt 0:01:16]} Bxc8 {[%emt 0:00:01]} 28. Qd1 {[%emt 0:00:41]} Qa1 {[%emt 0:05:19]} 29. Qxa1 {[%emt 0:02:46]} Bxa1 {[%emt 0:00:05]} 30. d6 {[%emt 0:01:15]} exd6 {[%emt 0:01:09]} 31. Nxd6 {[%emt 0:00:05]} Be6 {[%emt 0:00:09]} 32. h4 {[%emt 0:01:49]} Be5 {[%emt 0:02:31]} 33. Ne4 {[%emt 0:00:29]} Bf5 {[%emt 0:01:41]} 34. Bf3 {[%emt 0:00:52]} Bxe4 {[%emt 0:00:10]} 35. Bxe4 {[%emt 0:00:03]} h5 {[%emt 0:00:26]} 36. Kg2 {[%emt 0:00:05]} Kg7 {[%emt 0:00:03]} 37. f4 {[%emt 0:01:12]} Bc7 {[%emt 0:01:37]} 38. f5 {[%emt 0:00:14]} Kf6 {[%emt 0:01:08]} 39. fxg6 {[%emt 0:00:04]} fxg6 {[%emt 0:00:05]} 40. Kh3 {[%emt 0:00:16]} Ba5 {[%emt 0:00:22]} 41. g4 {[%emt 0:30:06]} 1/2-1/2

[Event "SWE-ch 2018"]
[Site "Ronneby"]
[Date "2018.06.30"]
[Round "1"]
[White "Hector, Jonny"]
[Black "Cramling, Pia"]
[Result "1-0"]
[ECO "B48"]
[WhiteElo "2499"]
[BlackElo "2452"]
[Annotator "ChessBase"]
[PlyCount "81"]
[EventDate "2018.06.30"]
[EventType "tourn"]
[EventCountry "SWE"]
[SourceTitle "playchess.com"]
[Source "ChessBase"]
[SourceQuality "1"]
[TimeControl "40/5400+30:1800+30"]

1. e4 {[%emt 0:00:00]} c5 {[%emt 0:00:31]} 2. Nf3 {[%emt 0:00:20]} e6 {[%emt 0:00:21]} 3. d4 {[%emt 0:00:20]} cxd4 {[%emt 0:00:04]} 4. Nxd4 {[%emt 0:00:08]} Nc6 {[%emt 0:00:14]} 5. Nc3 {[%emt 0:00:44]} Qc7 {[%emt 0:01:18]} 6. Be3 {[%emt 0:00:37]} a6 {[%emt 0:01:01]} 7. Qf3 {[%emt 0:00:49]} Nf6 {[%emt 0:01:55]} 8. O-O-O {[%emt 0:01:46]} Ne5 {[%emt 0:02:44]} 9. Qg3 {[%emt 0:00:38]} b5 {[%emt 0:02:52]} 10. f4 {[%emt 0:01:17]} Neg4 {[%emt 0:00:40]} 11. Bd2 {[%emt 0:00:44]} h5 {[%emt 0:35:10]} 12. h3 {[%emt 0:02:44]} b4 {[%emt 0:01:45]} 13. Nd5 {[%emt 0:01:38]} exd5 {[%emt 0:02:16]} 14. hxg4 {[%emt 0:00:15]} dxe4 {[%emt 0:01:31]} 15. g5 {[%emt 0:16:52]} Ng4 {[%emt 0:01:11]} 16. Qb3 {[%emt 0:09:24]} Bb7 {[%emt 0:12:31]} 17. Bxb4 {[%emt 0:23:38]} Bxb4 {[%emt 0:10:24]} 18. Qxb4 {[%emt 0:00:17]} Qxf4+ {[%emt 0:02:00]} 19. Kb1 {[%emt 0:03:22]} Rb8 {[%emt 0:01:49]} 20. g3 {[%emt 0:07:22]} Qe5 {[%emt 0:00:54]} 21. Bh3 {[%emt 0:00:55]} Bd5 {[%emt 0:08:51]} 22. Qa3 {[%emt 0:04:41]} Nf2 {[%emt 0:00:53]} 23. Nf5 {[%emt 0:01:36]} Nxd1 {[%emt 0:01:08]} 24. Rxd1 {[%emt 0:00:26]} Bc6 {[%emt 0:04:36]} 25. Nd6+ {[%emt 0:02:35]} Kf8 {[%emt 0:00:26]} 26. Rf1 {[%emt 0:00:33]} Qe7 {[%emt 0:03:33]} 27. Rxf7+ {[%emt 0:01:45]} Qxf7 {[%emt 0:00:01]} 28. Nxf7+ {[%emt 0:00:15]} Kxf7 {[%emt 0:00:02]} 29. Qd6 {[%emt 0:01:24]} Rhe8 {[%emt 0:01:23]} 30. Bf1 {[%emt 0:03:58]} Bb5 {[%emt 0:00:19]} 31. g6+ {[%emt 0:02:37]} Kg8 {[%emt 0:00:04]} 32. Qd5+ {[%emt 0:02:18]} Re6 {[%emt 0:00:20]} 33. Bh3 {[%emt 0:00:18]} Rbe8 {[%emt 0:03:11]} 34. Bxe6+ {[%emt 0:00:50]} dxe6 {[%emt 0:00:03]} 35. Qxh5 {[%emt 0:01:10]} e3 {[%emt 0:00:50]} 36. Qh7+ {[%emt 0:00:18]} Kf8 {[%emt 0:00:02]} 37. Qh8+ {[%emt 0:00:11]} Ke7 {[%emt 0:00:01]} 38. Qxg7+ {[%emt 0:00:14]} Kd6 {[%emt 0:00:34]} 39. Qd4+ {[%emt 0:00:15]} Ke7 {[%emt 0:00:41]} 40. Qa7+ {[%emt 0:02:35]} Bd7 {[%emt 0:00:31]} 41. Qxe3 {[%emt 0:30:15]} 1-0

[Event "SWE-ch 2018"]
[Site "Ronneby"]
[Date "2018.06.30"]
[Round "1"]
[White "Tikkanen, Hans"]
[Black "Smith, Axel"]
[Result "1/2-1/2"]
[ECO "D00"]
[WhiteElo "2495"]
[BlackElo "2491"]
[Annotator "ChessBase"]
[PlyCount "68"]
[EventDate "2018.06.30"]
[EventType "tourn"]
[EventCountry "SWE"]
[SourceTitle "playchess.com"]
[Source "ChessBase"]
[SourceQuality "1"]
[TimeControl "40/5400+30:1800+30"]

1. d4 {[%emt 0:00:00]} d5 {[%emt 0:00:00]} 2. Bf4 {[%emt 0:01:30]} c5 {[%emt 0:03:00]} 3. e3 {[%emt 0:01:11]} Nc6 {[%emt 0:01:11]} 4. Nf3 {[%emt 0:06:32]} Nf6 {[%emt 0:00:10]} 5. Nbd2 {[%emt 0:01:02]} Bg4 {[%emt 0:06:32]} 6. h3 {[%emt 0:11:04]} Bxf3 {[%emt 0:01:01]} 7. Nxf3 {[%emt 0:00:07]} cxd4 {[%emt 0:05:36]} 8. exd4 {[%emt 0:00:10]} e6 {[%emt 0:00:00]} 9. c3 {[%emt 0:02:55]} Bd6 {[%emt 0:00:00]} 10. Bxd6 {[%emt 0:04:32]} Qxd6 {[%emt 0:00:00]} 11. Bd3 {[%emt 0:00:11]} O-O {[%emt 0:00:02]} 12. O-O {[%emt 0:00:44]} Rfe8 {[%emt 0:09:19]} 13. Re1 {[%emt 0:02:28]} e5 {[%emt 0:03:03]} 14. dxe5 {[%emt 0:05:03]} Nxe5 {[%emt 0:00:03]} 15. Nxe5 {[%emt 0:01:19]} Rxe5 {[%emt 0:00:04]} 16. Rxe5 {[%emt 0:00:12]} Qxe5 {[%emt 0:00:03]} 17. Qe1 {[%emt 0:17:51]} Qxe1+ {[%emt 0:07:17]} 18. Rxe1 {[%emt 0:00:03]} Kf8 {[%emt 0:00:53]} 19. Kf1 {[%emt 0:06:39]} Re8 {[%emt 0:02:32]} 20. Rxe8+ {[%emt 0:03:37]} Kxe8 {[%emt 0:18:59]} 21. Ke2 {[%emt 0:01:07]} Ke7 {[%emt 0:01:38]} 22. Ke3 {[%emt 0:00:11]} Kd6 {[%emt 0:00:48]} 23. g4 {[%emt 0:10:11]} h6 {[%emt 0:02:01]} 24. f4 {[%emt 0:10:47]} g5 {[%emt 0:07:44]} 25. Bf1 {[%emt 0:05:18]} Ng8 {[%emt 0:07:09]} 26. c4 {[%emt 0:04:22]} Ne7 {[%emt 0:02:07]} 27. fxg5 {[%emt 0:00:12]} hxg5 {[%emt 0:00:03]} 28. cxd5 {[%emt 0:00:28]} Ke5 {[%emt 0:06:20]} 29. d6 {[%emt 0:00:44]} Kxd6 {[%emt 0:04:51]} 30. Kd4 {[%emt 0:02:30]} a5 {[%emt 0:00:57]} 31. Bd3 {[%emt 0:00:59]} Nc6+ {[%emt 0:02:58]} 32. Ke4 {[%emt 0:00:13]} Ne7 {[%emt 0:00:10]} 33. Kd4 {[%emt 0:00:18]} Nc6+ {[%emt 0:04:09]} 34. Ke4 {[%emt 0:00:05]} Ne7 {[%emt 0:00:05]} 1/2-1/2

[Event "SWE-ch 2018"]
[Site "Ronneby"]
[Date "2018.06.30"]
[Round "1"]
[White "Seo, Jung Min"]
[Black "Hillarp Persson, Tiger"]
[Result "1/2-1/2"]
[ECO "A62"]
[WhiteElo "2347"]
[BlackElo "2546"]
[Annotator "ChessBase"]
[PlyCount "82"]
[EventDate "2018.06.30"]
[EventType "tourn"]
[EventCountry "SWE"]
[SourceTitle "playchess.com"]
[Source "ChessBase"]
[SourceQuality "1"]
[TimeControl "40/5400+30:1800+30"]

1. d4 {[%emt 0:00:54]} Nf6 2. Nf3 g6 {[%emt 0:00:27]} 3. g3 {[%emt 0:00:06]} c5 {[%emt 0:01:53]} 4. d5 {[%emt 0:01:02]} d6 {[%emt 0:03:30]} 5. c4 {[%emt 0:03:07]} e6 {[%emt 0:06:06]} 6. Nc3 {[%emt 0:00:19]} exd5 {[%emt 0:00:09]} 7. cxd5 {[%emt 0:00:06]} Bg7 {[%emt 0:00:06]} 8. Bg2 {[%emt 0:00:19]} O-O {[%emt 0:00:10]} 9. O-O {[%emt 0:00:07]} Na6 {[%emt 0:00:33]} 10. Bf4 {[%emt 0:02:18]} Re8 {[%emt 0:11:15]} 11. Nd2 {[%emt 0:08:45]} Nh5 {[%emt 0:01:36]} 12. Be3 {[%emt 0:01:55]} Nc7 {[%emt 0:06:08]} 13. a4 {[%emt 0:08:55]} b6 {[%emt 0:06:53]} 14. Nc4 {[%emt 0:05:17]} Ba6 {[%emt 0:01:09]} 15. Qb3 {[%emt 0:04:32]} Bxc4 {[%emt 0:05:01]} 16. Qxc4 {[%emt 0:00:45]} a6 {[%emt 0:00:13]} 17. Bf3 {[%emt 0:22:58]} Rxe3 {[%emt 0:07:02]} 18. fxe3 {[%emt 0:00:16]} Nf6 {[%emt 0:00:07]} 19. Qb3 {[%emt 0:07:53]} Nd7 {[%emt 0:03:16]} 20. e4 {[%emt 0:00:31]} h5 {[%emt 0:07:15]} 21. h4 {[%emt 0:04:18]} Ne8 {[%emt 0:06:18]} 22. Kg2 {[%emt 0:01:47]} Ne5 {[%emt 0:02:06]} 23. e3 {[%emt 0:05:09]} Nf6 {[%emt 0:03:28]} 24. Be2 {[%emt 0:00:51]} Nfd7 {[%emt 0:01:51]} 25. Rf4 {[%emt 0:01:10]} c4 {[%emt 0:03:50]} 26. Bxc4 {[%emt 0:01:36]} Nc5 {[%emt 0:03:06]} 27. Qa2 {[%emt 0:00:19]} Rc8 {[%emt 0:00:08]} 28. Raf1 {[%emt 0:05:30]} Bh6 {[%emt 0:00:20]} 29. Be2 {[%emt 0:00:27]} Qe8 {[%emt 0:04:00]} 30. Rd1 {[%emt 0:01:19]} Bxf4 {[%emt 0:03:53]} 31. exf4 {[%emt 0:00:34]} Ng4 {[%emt 0:00:09]} 32. Bxg4 {[%emt 0:03:14]} hxg4 {[%emt 0:00:06]} 33. Qc4 {[%emt 0:02:42]} b5 {[%emt 0:00:29]} 34. axb5 {[%emt 0:00:18]} axb5 {[%emt 0:00:07]} 35. Qb4 {[%emt 0:02:41]} f5 {[%emt 0:02:19]} 36. Qxb5 {[%emt 0:02:40]} Qxb5 {[%emt 0:00:20]} 37. Nxb5 {[%emt 0:00:01]} Nxe4 {[%emt 0:00:11]} 38. Nc3 {[%emt 0:00:28]} Nxc3 {[%emt 0:00:43]} 39. bxc3 {[%emt 0:01:13]} Rxc3 {[%emt 0:00:07]} 40. Re1 {[%emt 0:00:48]} Kf7 {[%emt 0:01:30]} 41. Re6 {[%emt 0:30:21]} Rc2+ {[%emt 0:30:12]} 1/2-1/2

[Event "SWE-ch 2018"]
[Site "Ronneby"]
[Date "2018.07.01"]
[Round "2"]
[White "Hillarp Persson, Tiger"]
[Black "Hector, Jonny"]
[Result "1/2-1/2"]
[ECO "A21"]
[WhiteElo "2546"]
[BlackElo "2499"]
[Annotator "ChessBase"]
[PlyCount "62"]
[EventDate "2018.06.30"]
[EventType "tourn"]
[EventCountry "SWE"]
[SourceTitle "playchess.com"]
[Source "ChessBase"]
[SourceQuality "1"]
[TimeControl "40/5400+30:1800+30"]

1. c4 {[%emt 0:00:00]} e5 {[%emt 0:00:00]} 2. Nc3 {[%emt 0:00:00]} Bb4 {[%emt 0:00:48]} 3. Nd5 {[%emt 0:00:00]} a5 {[%emt 0:01:26]} 4. Nf3 {[%emt 0:03:31]} d6 {[%emt 0:07:00]} 5. a3 {[%emt 0:08:30]} c6 {[%emt 0:04:58]} 6. axb4 {[%emt 0:09:28]} cxd5 {[%emt 0:00:38]} 7. cxd5 {[%emt 0:00:08]} Nf6 {[%emt 0:03:58]} 8. d3 {[%emt 0:07:49]} Nxd5 {[%emt 0:04:15]} 9. Bd2 {[%emt 0:00:30]} Nc6 {[%emt 0:08:29]} 10. bxa5 {[%emt 0:00:49]} O-O {[%emt 0:02:08]} 11. g3 {[%emt 0:23:38]} b6 {[%emt 0:16:46]} 12. axb6 {[%emt 0:03:22]} Rxa1 {[%emt 0:01:34]} 13. Qxa1 {[%emt 0:00:15]} Ndb4 {[%emt 0:00:50]} 14. Bxb4 {[%emt 0:05:12]} Nxb4 {[%emt 0:00:08]} 15. Qa5 {[%emt 0:16:37]} Nc6 {[%emt 0:00:16]} 16. Qb5 {[%emt 0:02:31]} Bb7 {[%emt 0:06:04]} 17. Bh3 {[%emt 0:01:24]} Nd4 {[%emt 0:02:38]} 18. Nxd4 {[%emt 0:00:22]} Bxh1 {[%emt 0:00:51]} 19. Nc6 {[%emt 0:12:43]} Bxc6 {[%emt 0:02:50]} 20. Qxc6 {[%emt 0:00:06]} f5 {[%emt 0:00:35]} 21. e4 {[%emt 0:01:57]} fxe4 {[%emt 0:03:15]} 22. dxe4 {[%emt 0:00:09]} Qf6 {[%emt 0:00:43]} 23. Qc2 {[%emt 0:00:42]} d5 {[%emt 0:01:35]} 24. b7 {[%emt 0:00:57]} Qb6 {[%emt 0:05:21]} 25. Qc8 {[%emt 0:00:57]} Qxf2+ {[%emt 0:03:56]} 26. Kd1 {[%emt 0:00:05]} Qd4+ {[%emt 0:05:57]} 27. Kc1 {[%emt 0:00:08]} Qe3+ {[%emt 0:01:23]} 28. Kd1 {[%emt 0:00:57]} Qb3+ {[%emt 0:02:04]} 29. Kc1 {[%emt 0:00:47]} Qe3+ {[%emt 0:03:54]} 30. Kd1 {[%emt 0:00:07]} Qd4+ {[%emt 0:01:18]} 31. Kc1 {[%emt 0:00:12]} Qe3+ {[%emt 0:00:13]} 1/2-1/2

[Event "SWE-ch 2018"]
[Site "Ronneby"]
[Date "2018.07.01"]
[Round "2"]
[White "Smith, Axel"]
[Black "Cramling, Pia"]
[Result "1/2-1/2"]
[ECO "A13"]
[WhiteElo "2491"]
[BlackElo "2452"]
[Annotator "ChessBase"]
[PlyCount "56"]
[EventDate "2018.06.30"]
[EventType "tourn"]
[EventCountry "SWE"]
[SourceTitle "playchess.com"]
[Source "ChessBase"]
[SourceQuality "1"]
[TimeControl "40/5400+30:1800+30"]

1. c4 {[%emt 0:00:00]} e6 {[%emt 0:00:54]} 2. Nc3 {[%emt 0:00:00]} Bb4 {[%emt 0:00:27]} 3. e4 {[%emt 0:00:14]} Ne7 {[%emt 0:01:42]} 4. Nf3 {[%emt 0:02:39]} O-O {[%emt 0:03:42]} 5. d4 {[%emt 0:06:53]} d6 {[%emt 0:10:09]} 6. Qb3 {[%emt 0:09:15]} c5 {[%emt 0:04:01]} 7. a3 {[%emt 0:09:00]} Bxc3+ {[%emt 0:03:51]} 8. Qxc3 {[%emt 0:00:27]} cxd4 {[%emt 0:04:15]} 9. Nxd4 {[%emt 0:00:34]} e5 {[%emt 0:00:40]} 10. Nc2 {[%emt 0:01:52]} Be6 {[%emt 0:01:19]} 11. Bd3 {[%emt 0:09:25]} Nd7 {[%emt 0:02:02]} 12. Ne3 {[%emt 0:01:54]} Rc8 {[%emt 0:10:52]} 13. O-O {[%emt 0:20:11]} b5 {[%emt 0:01:54]} 14. b3 {[%emt 0:00:29]} Nb6 {[%emt 0:09:54]} 15. Bb2 {[%emt 0:05:18]} bxc4 {[%emt 0:03:18]} 16. Bxc4 {[%emt 0:02:29]} Bxc4 {[%emt 0:04:26]} 17. bxc4 {[%emt 0:00:28]} Qd7 {[%emt 0:09:25]} 18. Rac1 {[%emt 0:05:01]} Qe6 {[%emt 0:06:06]} 19. Qd3 {[%emt 0:04:47]} Rc6 {[%emt 0:00:41]} 20. Rc2 {[%emt 0:02:14]} Rfc8 {[%emt 0:03:02]} 21. Rfc1 {[%emt 0:00:04]} Rc5 {[%emt 0:00:21]} 22. Nd5 {[%emt 0:11:48]} Nc6 {[%emt 0:01:16]} 23. Nxb6 {[%emt 0:00:35]} axb6 {[%emt 0:00:02]} 24. Qb3 {[%emt 0:00:29]} Rb8 {[%emt 0:06:10]} 25. a4 {[%emt 0:04:07]} Na5 {[%emt 0:00:26]} 26. Qb4 {[%emt 0:00:19]} Nc6 {[%emt 0:01:18]} 27. Qb3 {[%emt 0:00:15]} Na5 {[%emt 0:00:12]} 28. Qb4 {[%emt 0:00:01]} Nc6 {[%emt 0:02:12]} 1/2-1/2

[Event "SWE-ch 2018"]
[Site "Ronneby"]
[Date "2018.07.01"]
[Round "2"]
[White "Von Bahr, Oskar"]
[Black "Grandelius, Nils"]
[Result "0-1"]
[ECO "A06"]
[WhiteElo "2432"]
[BlackElo "2668"]
[Annotator "ChessBase"]
[PlyCount "62"]
[EventDate "2018.06.30"]
[EventType "tourn"]
[EventCountry "SWE"]
[SourceTitle "playchess.com"]
[Source "ChessBase"]
[SourceQuality "1"]
[TimeControl "40/5400+30:1800+30"]

1. Nf3 {[%emt 0:00:00]} d5 {[%emt 0:00:14]} 2. g3 {[%emt 0:00:00]} Nd7 {[%emt 0:00:55]} 3. c4 {[%emt 0:06:52]} dxc4 {[%emt 0:00:43]} 4. Qa4 {[%emt 0:02:16]} g6 {[%emt 0:06:55]} 5. Bg2 {[%emt 0:02:45]} Bg7 {[%emt 0:03:45]} 6. O-O {[%emt 0:01:26]} Nh6 {[%emt 0:01:17]} 7. Qxc4 {[%emt 0:01:16]} O-O {[%emt 0:01:11]} 8. d3 {[%emt 0:03:30]} Nb6 {[%emt 0:04:34]} 9. Qc2 {[%emt 0:03:04]} Nf5 {[%emt 0:08:33]} 10. Nbd2 {[%emt 0:06:40]} Bd7 {[%emt 0:04:09]} 11. Rb1 {[%emt 0:07:48]} Rc8 {[%emt 0:04:16]} 12. Nc4 {[%emt 0:24:27]} c5 {[%emt 0:05:21]} 13. e3 {[%emt 0:02:22]} Nxc4 {[%emt 0:05:40]} 14. dxc4 {[%emt 0:01:21]} Nd6 {[%emt 0:01:19]} 15. Nd2 {[%emt 0:06:03]} Qa5 {[%emt 0:04:14]} 16. b3 {[%emt 0:02:22]} b5 {[%emt 0:03:09]} 17. Rd1 {[%emt 0:02:23]} Bg4 {[%emt 0:06:31]} 18. Bf3 {[%emt 0:01:27]} Bf5 {[%emt 0:02:14]} 19. e4 {[%emt 0:00:48]} Be6 {[%emt 0:00:02]} 20. Be2 {[%emt 0:04:10]} Rfd8 {[%emt 0:01:16]} 21. Kg2 {[%emt 0:01:33]} h5 {[%emt 0:04:47]} 22. f3 {[%emt 0:02:29]} Rb8 {[%emt 0:04:54]} 23. cxb5 {[%emt 0:03:27]} Nxb5 {[%emt 0:00:14]} 24. Bxb5 {[%emt 0:01:09]} Qxb5 {[%emt 0:01:17]} 25. Re1 {[%emt 0:00:44]} Rd3 {[%emt 0:04:02]} 26. Bb2 {[%emt 0:03:25]} Qd7 {[%emt 0:00:07]} 27. Re2 {[%emt 0:01:28]} Bh3+ {[%emt 0:00:52]} 28. Kh1 {[%emt 0:00:55]} Bxb2 {[%emt 0:04:55]} 29. Rxb2 {[%emt 0:01:02]} Qd4 {[%emt 0:01:21]} 30. Rb1 {[%emt 0:01:48]} Rd8 {[%emt 0:01:34]} 31. Rb2 {[%emt 0:00:27]} Re3 {[%emt 0:02:20]} 0-1

[Event "SWE-ch 2018"]
[Site "Ronneby"]
[Date "2018.07.03"]
[Round "4"]
[White "Westerberg, Jonathan"]
[Black "Grandelius, Nils"]
[Result "0-1"]
[ECO "D02"]
[WhiteElo "2517"]
[BlackElo "2668"]
[Annotator "ChessBase"]
[PlyCount "80"]
[EventDate "2018.06.30"]
[EventType "tourn"]
[EventCountry "SWE"]
[SourceTitle "playchess.com"]
[Source "ChessBase"]
[SourceQuality "1"]
[TimeControl "40/5400+30:1800+30"]

1. d4 {[%emt 0:00:00]} Nf6 {[%emt 0:00:00]} 2. Nf3 {[%emt 0:00:07]} d5 {[%emt 0:01:56]} 3. Bf4 {[%emt 0:01:46]} e6 {[%emt 0:02:35]} 4. e3 {[%emt 0:00:13]} Bd6 {[%emt 0:02:38]} 5. Bxd6 {[%emt 0:00:37]} cxd6 {[%emt 0:00:05]} 6. c4 {[%emt 0:00:17]} dxc4 {[%emt 0:00:45]} 7. Bxc4 {[%emt 0:00:31]} O-O {[%emt 0:00:04]} 8. O-O {[%emt 0:02:53]} a6 {[%emt 0:01:09]} 9. Nbd2 {[%emt 0:08:20]} Nc6 {[%emt 0:06:25]} 10. Be2 {[%emt 0:05:33]} e5 {[%emt 0:12:31]} 11. dxe5 {[%emt 0:01:20]} dxe5 {[%emt 0:00:07]} 12. Nc4 {[%emt 0:06:22]} e4 {[%emt 0:01:29]} 13. Qxd8 {[%emt 0:10:23]} Rxd8 {[%emt 0:00:11]} 14. Nfe5 {[%emt 0:00:11]} Nxe5 {[%emt 0:04:25]} 15. Nxe5 {[%emt 0:00:02]} Be6 {[%emt 0:01:03]} 16. Bc4 {[%emt 0:00:14]} Nd5 {[%emt 0:23:41]} 17. Bb3 {[%emt 0:03:40]} a5 {[%emt 0:00:08]} 18. a3 {[%emt 0:20:57]} a4 {[%emt 0:01:54]} 19. Ba2 {[%emt 0:01:45]} Rac8 {[%emt 0:01:22]} 20. Rfd1 {[%emt 0:10:21]} b5 {[%emt 0:11:55]} 21. h3 {[%emt 0:02:53]} f6 {[%emt 0:03:53]} 22. Ng4 {[%emt 0:00:27]} Nc7 {[%emt 0:02:36]} 23. Rxd8+ {[%emt 0:08:05]} Rxd8 {[%emt 0:00:02]} 24. Bxe6+ {[%emt 0:00:25]} Nxe6 {[%emt 0:00:04]} 25. Nh2 {[%emt 0:00:03]} Rd2 {[%emt 0:02:17]} 26. Rb1 {[%emt 0:02:48]} Nc5 {[%emt 0:00:55]} 27. Nf1 {[%emt 0:01:36]} Rc2 {[%emt 0:00:05]} 28. Ng3 {[%emt 0:03:07]} g6 {[%emt 0:01:05]} 29. Rd1 {[%emt 0:01:46]} Rxb2 {[%emt 0:01:22]} 30. Rd8+ {[%emt 0:00:11]} Kf7 {[%emt 0:01:28]} 31. Rc8 {[%emt 0:00:01]} Nd3 {[%emt 0:01:31]} 32. Nxe4 {[%emt 0:01:25]} b4 {[%emt 0:01:54]} 33. axb4 {[%emt 0:01:28]} a3 {[%emt 0:00:29]} 34. Ra8 {[%emt 0:00:40]} a2 {[%emt 0:01:00]} 35. Kh2 {[%emt 0:00:19]} Nxb4 {[%emt 0:00:37]} 36. Ra7+ {[%emt 0:00:35]} Ke6 {[%emt 0:01:32]} 37. Nc3 {[%emt 0:00:23]} Rxf2 {[%emt 0:04:24]} 38. Kg3 {[%emt 0:00:03]} Rc2 {[%emt 0:01:14]} 39. Nxa2 {[%emt 0:00:02]} Rxa2 {[%emt 0:00:16]} 40. Rxh7 {[%emt 0:00:04]} Nd5 {[%emt 0:01:47]} 0-1

[Event "SWE-ch 2018"]
[Site "Ronneby"]
[Date "2018.07.03"]
[Round "4"]
[White "Tikkanen, Hans"]
[Black "Seo, Jung Min"]
[Result "1-0"]
[ECO "D05"]
[WhiteElo "2495"]
[BlackElo "2347"]
[Annotator "ChessBase"]
[PlyCount "123"]
[EventDate "2018.06.30"]
[EventType "tourn"]
[EventCountry "SWE"]
[SourceTitle "playchess.com"]
[Source "ChessBase"]
[SourceQuality "1"]
[TimeControl "40/5400+30:1800+30"]

1. d4 {[%emt 0:00:00]} Nf6 {[%emt 0:00:00]} 2. Nf3 {[%emt 0:00:00]} d5 {[%emt 0:00:00]} 3. e3 {[%emt 0:00:04]} e6 {[%emt 0:00:14]} 4. Bd3 {[%emt 0:00:08]} Be7 {[%emt 0:01:44]} 5. Nbd2 {[%emt 0:01:51]} Nbd7 {[%emt 0:00:09]} 6. Qe2 {[%emt 0:16:56]} c5 {[%emt 0:00:34]} 7. c3 {[%emt 0:02:03]} O-O {[%emt 0:13:41]} 8. O-O {[%emt 0:00:35]} b6 {[%emt 0:01:04]} 9. e4 {[%emt 0:01:39]} dxe4 {[%emt 0:00:22]} 10. Nxe4 {[%emt 0:00:14]} Bb7 {[%emt 0:00:15]} 11. Neg5 {[%emt 0:31:26]} h6 {[%emt 0:21:28]} 12. Nh3 {[%emt 0:00:03]} cxd4 {[%emt 0:02:50]} 13. cxd4 {[%emt 0:00:08]} Nd5 {[%emt 0:14:59]} 14. a3 {[%emt 0:01:49]} Re8 {[%emt 0:05:48]} 15. Ne5 {[%emt 0:03:32]} Nxe5 {[%emt 0:11:03]} 16. dxe5 {[%emt 0:00:06]} Bf8 {[%emt 0:00:37]} 17. Qg4 {[%emt 0:18:21]} Ne3 {[%emt 0:03:16]} 18. Bxe3 {[%emt 0:00:11]} Qxd3 {[%emt 0:00:03]} 19. Bxh6 {[%emt 0:00:22]} Rad8 {[%emt 0:07:25]} 20. Be3 {[%emt 0:04:38]} Qb5 {[%emt 0:03:01]} 21. Bd4 {[%emt 0:06:51]} Qc6 {[%emt 0:05:17]} 22. Bc3 {[%emt 0:00:35]} Qe4 {[%emt 0:04:05]} 23. Qxe4 {[%emt 0:04:41]} Bxe4 {[%emt 0:00:01]} 24. Rfe1 {[%emt 0:00:47]} Bf5 {[%emt 0:00:20]} 25. Ng5 {[%emt 0:01:27]} Bc5 {[%emt 0:00:24]} 26. Ne4 {[%emt 0:00:58]} Be7 {[%emt 0:00:49]} 27. f3 {[%emt 0:02:49]} Rd5 {[%emt 0:00:43]} 28. Kf2 {[%emt 0:00:58]} Red8 {[%emt 0:00:38]} 29. Ke2 {[%emt 0:00:19]} Kf8 {[%emt 0:00:45]} 30. h4 {[%emt 0:00:52]} Ke8 {[%emt 0:01:01]} 31. Rh1 {[%emt 0:00:27]} Rd3 {[%emt 0:01:12]} 32. Nf2 {[%emt 0:00:33]} R3d5 {[%emt 0:00:22]} 33. Rac1 {[%emt 0:00:31]} Bc5 {[%emt 0:00:42]} 34. h5 {[%emt 0:00:28]} Bxf2 {[%emt 0:01:18]} 35. Kxf2 {[%emt 0:00:02]} Bd3 {[%emt 0:00:34]} 36. Rh4 {[%emt 0:00:49]} Bb5 {[%emt 0:00:21]} 37. h6 {[%emt 0:00:31]} gxh6 {[%emt 0:00:04]} 38. Rxh6 {[%emt 0:00:02]} a5 {[%emt 0:00:22]} 39. Rch1 {[%emt 0:00:22]} Rd1 {[%emt 0:00:21]} 40. Rxd1 {[%emt 0:01:00]} Rxd1 {[%emt 0:00:02]} 41. Rh8+ {[%emt 0:30:09]} Kd7 {[%emt 0:30:09]} 42. Rf8 {[%emt 0:00:09]} Bc4 {[%emt 0:00:00]} 43. Rxf7+ {[%emt 0:00:00]} Kc6 {[%emt 0:00:00]} 44. g4 {[%emt 0:00:00]} Rd8 {[%emt 0:00:00]} 45. Kg3 {[%emt 0:00:00]} a4 {[%emt 0:00:00]} 46. Rf6 {[%emt 0:00:00]} Rg8 {[%emt 0:00:00]} 47. Rf4 {[%emt 0:00:00]} b5 {[%emt 0:00:00]} 48. Rd4 {[%emt 0:00:00]} Bd5 {[%emt 0:00:00]} 49. Bb4 {[%emt 0:00:00]} Rh8 {[%emt 0:00:00]} 50. g5 {[%emt 0:00:00]} Rg8 {[%emt 0:00:00]} 51. Kg4 {[%emt 0:00:00]} Kd7 {[%emt 0:00:00]} 52. f4 {[%emt 0:00:00]} Ke8 {[%emt 0:00:00]} 53. Rxd5 {[%emt 0:00:00]} exd5 {[%emt 0:00:00]} 54. f5 {[%emt 0:00:00]} d4 {[%emt 0:00:00]} 55. e6 {[%emt 0:00:19]} d3 {[%emt 0:00:00]} 56. f6 {[%emt 0:00:12]} Rf8 {[%emt 0:00:00]} 57. f7+ {[%emt 0:00:39]} Kd8 {[%emt 0:00:00]} 58. e7+ {[%emt 0:00:05]} Kd7 {[%emt 0:00:00]} 59. exf8=Q {[%emt 0:00:10]} d2 {[%emt 0:00:00]} 60. Qd6+ {[%emt 0:00:15]} Kc8 {[%emt 0:00:00]} 61. f8=Q+ {[%emt 0:00:30]} Kb7 {[%emt 0:00:00]} 62. Qfb8# 1-0